bitfinex/quotes_BTCUSD_20220213
["timestamp","ask_amount","ask_price","bid_price","bid_amount"]
[1644758681126,0.330098,42570.0,42569.0,0.00163288]
[1644758681526,0.00062065,42571.0,42570.0,0.00010794]
[1644758681726,0.00036724,42571.0,42570.0,0.00010794]
[1644758686750,0.00029082,42571.0,42570.0,0.00010794]
[1644758689152,0.33038882,42571.0,42570.0,0.00010794]
[1644758690155,0.33038882,42571.0,42570.0,0.00168789]
[1644758691179,0.61699046,42571.0,42570.0,0.00168789]
[1644758695431,0.61699046,42571.0,42570.0,0.00010794]
[1644758700677,0.76699046,42571.0,42570.0,0.00010794]
[1644758700879,0.72001013,42571.0,42570.0,0.00010794]
[1644758702029,0.77001013,42571.0,42570.0,0.00010794]
[1644758703630,0.72001013,42571.0,42570.0,0.00010794]
[1644758705234,0.72001013,42571.0,42570.0,0.00184685]
[1644758706291,0.480098,42571.0,42570.0,0.00184685]
[1644758706790,0.76829991,42571.0,42570.0,0.00184685]
[1644758709237,0.480098,42571.0,42570.0,0.00184685]
[1644758710040,0.76302508,42571.0,42570.0,0.00010794]
[1644758710240,0.86302508,42571.0,42570.0,0.00010794]
[1644758710841,0.580098,42571.0,42570.0,0.00010794]
[1644758711446,0.53311767,42571.0,42570.0,0.00010794]
[1644758711645,0.530098,42571.0,42570.0,0.00010794]
[1644758712888,0.81020358,42571.0,42570.0,0.00010794]
[1644758716494,0.70633629,42571.0,42570.0,0.00010794]
[1644758716737,1.90233629,42571.0,42570.0,0.00010794]
[1644758716939,1.876098,42571.0,42570.0,0.00010794]
[1644758717139,1.926098,42571.0,42570.0,0.00010794]
[1644758717337,1.776098,42571.0,42570.0,0.00010794]
[1644758717738,1.776098,42571.0,42570.0,1.299e-05]
[1644758718338,1.826098,42571.0,42570.0,1.299e-05]
[1644758721185,0.580098,42571.0,42570.0,1.299e-05]
[1644758721381,2.11862038,42571.0,42570.0,1.299e-05]
[1644758721780,2.06862038,42571.0,42570.0,1.299e-05]
[1644758722781,0.82262038,42571.0,42570.0,1.299e-05]
[1644758723181,2.06862038,42571.0,42570.0,1.299e-05]
[1644758723381,2.11862038,42571.0,42570.0,1.299e-05]
[1644758724832,0.87262038,42571.0,42570.0,1.299e-05]
[1644758725835,2.11862038,42571.0,42570.0,1.299e-05]
[1644758726835,0.87262038,42571.0,42570.0,1.299e-05]
[1644758727037,2.24403445,42571.0,42570.0,1.299e-05]
[1644758727237,0.99803445,42571.0,42570.0,1.299e-05]
[1644758727882,2.24403445,42571.0,42570.0,1.299e-05]
[1644758728481,2.09403445,42571.0,42570.0,1.299e-05]
[1644758730283,2.24403445,42571.0,42570.0,1.299e-05]
[1644758730683,2.09403445,42571.0,42570.0,1.299e-05]
[1644758730882,2.24403445,42571.0,42570.0,1.299e-05]
[1644758731284,2.09403445,42571.0,42570.0,1.299e-05]
[1644758731934,2.24403445,42571.0,42570.0,1.299e-05]
[1644758732135,2.24360807,42571.0,42570.0,1.299e-05]
[1644758732335,2.4184281,42571.0,42570.0,1.299e-05]
[1644758732837,2.2684281,42571.0,42570.0,1.299e-05]
[1644758733033,2.06862038,42571.0,42570.0,1.299e-05]
[1644758733233,2.2684281,42571.0,42570.0,1.299e-05]
[1644758734239,0.87262038,42571.0,42570.0,1.299e-05]
[1644758734437,1.0724281,42571.0,42570.0,1.299e-05]
[1644758735037,0.87262038,42571.0,42570.0,1.299e-05]
[1644758735487,1.0724281,42571.0,42570.0,1.299e-05]
[1644758737288,0.87262038,42571.0,42570.0,1.299e-05]
[1644758737887,1.07268151,42571.0,42570.0,1.299e-05]
[1644758738086,2.31868151,42571.0,42570.0,1.299e-05]
[1644758738291,1.07268151,42571.0,42570.0,1.299e-05]
[1644758739148,0.33035141,42571.0,42570.0,1.299e-05]
[1644758740039,0.33035141,42571.0,42570.0,0.00209544]
[1644758740241,0.429998,42571.0,42570.0,0.00209544]
[1644758741356,0.529998,42571.0,42570.0,0.00209544]
[1644758745086,0.529998,42571.0,42570.0,1.299e-05]
[1644758745287,0.53025141,42571.0,42570.0,1.299e-05]
[1644758745487,0.53025141,42571.0,42569.0,0.06004424]
[1644758745687,0.330098,42570.0,42569.0,0.00131324]
[1644758745886,0.430098,42570.0,42569.0,0.00131324]
[1644758746936,0.1,42570.0,42569.0,0.00131324]
[1644758747142,0.430098,42570.0,42569.0,0.00131324]
[1644758747538,0.1,42570.0,42569.0,0.00131324]
[1644758748539,0.10015341,42571.0,42569.0,0.00131324]
[1644758749138,0.330098,42570.0,42569.0,0.00131324]
[1644758749438,0.1,42570.0,42569.0,0.00131324]
[1644758749743,0.1,42570.0,42568.0,0.05610553]
[1644758750383,0.430098,42570.0,42569.0,0.00170361]
[1644758750683,0.28311656,42570.0,42569.0,0.00170361]
[1644758750882,0.430086,42570.0,42569.0,0.00170361]
[1644758751682,0.1,42570.0,42569.0,0.00170361]
[1644758751882,0.330086,42570.0,42569.0,0.06043261]
[1644758752083,0.10015341,42571.0,42569.0,0.42048639]
[1644758752291,0.00025341,42571.0,42569.0,0.13163774]
[1644758752584,0.01298464,42572.0,42569.0,0.13163774]
[1644758752783,0.00025341,42571.0,42570.0,0.048993]
[1644758752983,0.01298464,42572.0,42570.0,0.107713]
[1644758753182,0.01244889,42572.0,42570.0,0.107713]
[1644758753385,0.01244889,42572.0,42570.0,0.107712]
[1644758753584,0.01244889,42572.0,42570.0,0.05872]
[1644758754439,0.01244889,42572.0,42570.0,0.32450061]
[1644758754939,0.01244889,42572.0,42571.0,0.26355774]
[1644758755135,0.01219548,42572.0,42571.0,0.26355774]
[1644758756036,0.01219548,42572.0,42571.0,0.45289935]
[1644758758390,0.01219548,42572.0,42571.0,0.26355774]
[1644758759191,0.01219548,42572.0,42570.0,0.05872]
[1644758759390,0.01244889,42572.0,42570.0,0.107713]
[1644758759590,0.01244889,42572.0,42570.0,0.05872]
[1644758761093,0.01244889,42572.0,42570.0,0.107713]
[1644758761393,0.01244889,42572.0,42570.0,0.05872]
[1644758761640,0.01244889,42572.0,42570.0,0.107713]
[1644758762038,0.01244889,42572.0,42570.0,0.05872]
[1644758763443,0.01244889,42572.0,42571.0,0.263437]
[1644758763642,0.01219548,42572.0,42571.0,0.263437]
[1644758773686,0.01211176,42572.0,42571.0,0.263437]
[1644758776640,0.01211176,42572.0,42570.0,0.15863684]
[1644758776840,0.01236517,42572.0,42570.0,0.15863684]
[1644758777040,0.01236517,42572.0,42570.0,0.20762884]
[1644758777242,0.01236517,42572.0,42570.0,0.157712]
[1644758777439,0.01236517,42572.0,42570.0,0.15863684]
[1644758777639,0.01236517,42572.0,42570.0,0.20762884]
[1644758778843,0.01236517,42572.0,42571.0,0.26356573]
[1644758779041,0.01211176,42572.0,42571.0,0.26356573]
[1644758779742,0.01211176,42572.0,42571.0,0.31255573]
[1644758779942,0.01211176,42572.0,42571.0,0.26356573]
[1644758780386,0.01211176,42572.0,42570.0,0.20762884]
[1644758780587,0.01236517,42572.0,42570.0,0.20762884]
[1644758782591,0.01236517,42572.0,42570.0,0.157712]
[1644758782789,0.01236517,42572.0,42570.0,0.20762884]
[1644758784839,0.01236517,42572.0,42570.0,0.15863684]
[1644758785039,0.01236517,42572.0,42570.0,0.20762884]
[1644758785438,0.01236517,42572.0,42570.0,0.15863684]
[1644758785640,0.01236517,42572.0,42570.0,0.20762884]
[1644758785841,0.01236517,42572.0,42570.0,0.157712]
[1644758786043,0.01236517,42572.0,42570.0,0.15863684]
[1644758786342,0.01236517,42572.0,42570.0,0.20762884]
[1644758789585,0.01236517,42572.0,42570.0,0.15863684]
[1644758789785,0.01236517,42572.0,42570.0,0.20762884]
[1644758789985,0.01236517,42572.0,42571.0,0.26194968]
[1644758790185,0.01211176,42572.0,42571.0,0.26194968]
[1644758791387,0.01211176,42572.0,42570.0,0.42712796]
[1644758791641,0.01236517,42572.0,42570.0,0.47611996]
[1644758792037,0.01236517,42572.0,42570.0,0.42712796]
[1644758792237,0.01236517,42572.0,42571.0,0.26317317]
[1644758792437,0.01211176,42572.0,42571.0,0.26317317]
[1644758793238,0.01211176,42572.0,42571.0,0.31216317]
[1644758793439,0.01211176,42572.0,42571.0,0.26317317]
[1644758794241,0.0120463,42572.0,42571.0,0.26317317]
[1644758794840,0.0120463,42572.0,42570.0,0.15863684]
[1644758795040,0.01229971,42572.0,42570.0,0.20762884]
[1644758795683,0.01229971,42572.0,42570.0,0.157712]
[1644758795883,0.01229971,42572.0,42570.0,0.20762884]
[1644758800744,0.01229971,42572.0,42570.0,0.10872]
[1644758801143,0.01229971,42572.0,42570.0,0.05872]
[1644758801346,0.01229971,42572.0,42570.0,0.10872]
[1644758801744,0.01229971,42572.0,42570.0,0.107712]
[1644758801943,0.01229971,42572.0,42570.0,0.05872]
[1644758802145,0.01229971,42572.0,42570.0,0.107713]
[1644758802546,0.330086,42571.0,42570.0,0.05872]
[1644758802751,0.330086,42571.0,42568.0,0.00020051]
[1644758802752,0.730086,42571.0,42568.0,0.00020051]
[1644758802997,0.21006953,42570.0,42566.0,0.00020051]
[1644758803195,0.0999,42567.0,42560.0,0.00073724]
[1644758803496,0.0999,42566.0,42560.0,0.00073724]
[1644758803694,0.0999,42563.0,42561.0,0.117474]
[1644758803894,0.0999,42563.0,42561.0,0.11767451]
[1644758804294,0.0999,42563.0,42562.0,0.049013]
[1644758804494,0.0999,42563.0,42562.0,0.00020051]
[1644758804694,0.0999,42563.0,42561.0,0.11767451]
[1644758805296,0.00053661,42567.0,42561.0,0.11767451]
[1644758806098,0.3,42568.0,42561.0,0.11767451]
[1644758806296,0.00053661,42567.0,42561.0,0.117474]
[1644758806744,0.00053661,42567.0,42561.0,0.11767451]
[1644758807242,0.3,42568.0,42561.0,0.11767451]
[1644758807440,0.00053661,42567.0,42561.0,0.117474]
[1644758807640,0.00053661,42567.0,42561.0,0.11767451]
[1644758808240,0.058739,42566.0,42561.0,0.11767451]
[1644758808640,0.00053661,42567.0,42561.0,0.11767451]
[1644758809541,0.3,42568.0,42561.0,0.11767451]
[1644758809944,0.00053661,42567.0,42561.0,0.11767451]
[1644758810785,0.3,42568.0,42561.0,0.11767451]
[1644758810984,0.00053661,42567.0,42561.0,0.11767451]
[1644758811986,0.358738,42568.0,42561.0,0.11767451]
[1644758812386,0.00053661,42567.0,42561.0,0.11767451]
[1644758813189,0.3999,42568.0,42561.0,0.11767451]
[1644758813390,0.3,42568.0,42561.0,0.11767451]
[1644758813588,0.00053661,42567.0,42561.0,0.11767451]
[1644758814541,0.3999,42568.0,42561.0,0.11767451]
[1644758814734,0.00051408,42567.0,42561.0,0.11767451]
[1644758815535,0.3999,42568.0,42561.0,0.11767451]
[1644758815937,0.058739,42566.0,42561.0,0.11767451]
[1644758816135,0.00051408,42567.0,42561.0,0.11767451]
[1644758816936,0.00016899,42567.0,42561.0,0.11767451]
[1644758817141,0.00016899,42567.0,42561.0,0.117474]
[1644758817989,0.3999,42568.0,42561.0,0.11767451]
[1644758818188,0.00049467,42567.0,42561.0,0.11767451]
[1644758819190,0.3999,42568.0,42561.0,0.11767451]
[1644758819390,0.00049467,42567.0,42561.0,0.11767451]
[1644758820390,0.458637,42568.0,42561.0,0.11767451]
[1644758820592,0.458637,42568.0,42561.0,0.117474]
[1644758820791,0.00049467,42567.0,42561.0,0.11767451]
[1644758821644,0.3999,42568.0,42561.0,0.11767451]
[1644758821838,0.00049542,42567.0,42561.0,0.11767451]
[1644758822137,0.058738,42566.0,42561.0,0.11767451]
[1644758823643,0.00049541,42567.0,42561.0,0.11767451]
[1644758824041,0.458636,42568.0,42561.0,0.11767451]
[1644758824242,0.458636,42568.0,42561.0,0.117474]
[1644758824243,0.0999,42565.0,42561.0,0.117474]
[1644758824442,0.0999,42565.0,42561.0,0.11767451]
[1644758825487,0.0999,42565.0,42561.0,0.117474]
[1644758825685,0.0999,42565.0,42561.0,0.11767451]
[1644758826690,0.0999,42565.0,42561.0,0.117474]
[1644758826889,0.0999,42565.0,42561.0,0.11767451]
[1644758827890,0.0999,42565.0,42561.0,0.117474]
[1644758828089,0.0999,42565.0,42561.0,0.11767451]
[1644758829539,0.0999,42565.0,42564.0,0.049009]
[1644758829742,0.09981328,42565.0,42564.0,0.05582386]
[1644758829937,0.0004966,42567.0,42564.0,0.17347937]
[1644758830142,0.0996,42567.0,42564.0,0.17347937]
[1644758830340,0.0997695,42567.0,42564.0,0.12447037]
[1644758830536,0.0997695,42567.0,42565.0,0.049006]
[1644758830738,0.0997695,42567.0,42565.0,0.05892851]
[1644758830938,0.0997695,42567.0,42565.0,0.10793351]
[1644758831440,0.0995,42567.0,42565.0,0.05892851]
[1644758831637,0.0995,42567.0,42565.0,0.10793351]
[1644758831837,0.0995,42567.0,42565.0,0.10793451]
[1644758832238,0.0001695,42568.0,42566.0,0.049003]
[1644758832438,0.0120463,42572.0,42567.0,0.107727]
[1644758832641,0.0120463,42572.0,42567.0,0.058726]
[1644758832642,0.00053657,42568.0,42567.0,0.058726]
[1644758833688,0.0120463,42572.0,42567.0,0.107727]
[1644758833888,0.00053655,42570.0,42567.0,0.058726]
[1644758834087,0.00053655,42570.0,42568.0,0.07430373]
[1644758834288,0.00053655,42570.0,42569.0,0.058728]
[1644758834887,0.0120463,42572.0,42569.0,0.058728]
[1644758835089,0.01258284,42572.0,42569.0,0.058728]
[1644758836091,0.0120463,42572.0,42569.0,0.058728]
[1644758836740,0.0120463,42572.0,42569.0,0.05866549]
[1644758841490,0.0120463,42572.0,42570.0,0.058718]
[1644758841689,0.0120463,42572.0,42570.0,0.10771]
[1644758841989,0.0120463,42572.0,42570.0,0.058718]
[1644758842792,0.0070463,42572.0,42570.0,0.058718]
[1644758862647,0.0070463,42572.0,42571.0,0.048991]
[1644758862890,0.0070463,42572.0,42570.0,0.108718]
[1644758863093,0.0070463,42572.0,42571.0,0.04899]
[1644758864090,0.0070463,42572.0,42570.0,0.108718]
[1644758864891,0.0070463,42572.0,42571.0,0.048991]
[1644758865092,0.00698064,42572.0,42570.0,0.108718]
[1644758865293,0.00698064,42572.0,42571.0,0.05063179]
[1644758865494,0.00698064,42572.0,42571.0,0.00164179]
[1644758887797,0.00690434,42572.0,42571.0,0.00164179]
[1644758896740,0.27103477,42572.0,42571.0,0.00164179]
[1644758898142,0.33336958,42570.0,42569.0,0.058733]
[1644758898342,0.60894461,42570.0,42569.0,0.058733]
[1644758899342,0.27885861,42570.0,42569.0,0.058733]
[1644758899544,0.60894461,42570.0,42569.0,0.058733]
[1644758899943,0.27885861,42570.0,42569.0,0.058733]
[1644758900404,0.00328358,42570.0,42569.0,0.058733]
[1644758903807,0.07811903,42574.0,42571.0,1.0]
[1644758903808,0.001,42574.0,42571.0,1.0]
[1644758904014,0.0993,42573.0,42572.0,0.407712]
[1644758904283,0.001,42574.0,42572.0,0.358724]
[1644758904482,0.001,42574.0,42573.0,0.048986]
[1644758905080,0.001,42574.0,42573.0,0.56936616]
[1644758905281,0.001,42574.0,42573.0,0.098986]
[1644758905681,0.001,42574.0,42573.0,0.048986]
[1644758906480,0.001,42574.0,42573.0,0.311435]
[1644758910095,0.00288237,42574.0,42573.0,0.311435]
[1644758912357,0.00288237,42574.0,42573.0,0.048986]
[1644758912757,0.00288237,42574.0,42573.0,0.31258953]
[1644758913759,0.00288237,42574.0,42573.0,0.048986]
[1644758915393,0.00238153,42574.0,42573.0,0.048986]
[1644758917394,0.00238153,42574.0,42573.0,0.31099429]
[1644758925801,0.00238153,42574.0,42573.0,0.048986]
[1644758926646,0.00230173,42574.0,42573.0,0.048986]
[1644758928947,0.00230173,42574.0,42573.0,0.31635147]
[1644758931301,0.00230173,42574.0,42573.0,0.36635147]
[1644758935246,0.00299875,42574.0,42573.0,0.36635147]
[1644758935446,0.00299875,42574.0,42573.0,0.46635147]
[1644758938116,0.00251151,42574.0,42573.0,0.46635147]
[1644758938315,0.01644785,42579.0,42575.0,0.24284931]
[1644758938517,0.01644785,42579.0,42576.0,0.166397]
[1644758938716,0.01644785,42579.0,42577.0,0.11310999]
[1644758940317,0.01644785,42579.0,42577.0,0.17182299]
[1644758945701,0.01644785,42579.0,42578.0,0.0020555]
[1644758945901,0.01644785,42579.0,42578.0,0.0510275]
[1644758950351,0.01644785,42579.0,42578.0,0.048972]
[1644758962803,0.01644785,42579.0,42578.0,0.31017749]
[1644758963203,0.01633537,42579.0,42578.0,0.31017749]
[1644758964252,0.01633537,42579.0,42578.0,0.048972]
[1644758968801,0.01633537,42579.0,42578.0,0.166401]
[1644758984101,0.01623006,42579.0,42578.0,0.166401]
[1644758993112,0.01623006,42579.0,42578.0,0.176401]
[1644758994149,0.01623006,42579.0,42578.0,0.226401]
[1644758995153,0.01623006,42579.0,42578.0,0.22806641]
[1644759004266,0.01623006,42579.0,42578.0,0.22799186]
[1644759009155,0.01623006,42579.0,42578.0,0.3791519]
[1644759009353,0.01623006,42579.0,42578.0,0.53031194]
[1644759021302,0.01623006,42579.0,42578.0,0.79461113]
[1644759021503,0.01623006,42579.0,42578.0,0.79458995]
[1644759023504,0.01623006,42579.0,42578.0,0.53031194]
[1644759024005,0.01623006,42579.0,42578.0,0.79117199]
[1644759026055,0.01612534,42579.0,42578.0,0.79117199]
[1644759026855,0.01612534,42579.0,42578.0,0.53031194]
[1644759027060,0.01612534,42579.0,42578.0,0.79051643]
[1644759030001,0.01612534,42579.0,42578.0,0.53031194]
[1644759031506,0.01612534,42579.0,42578.0,0.86700042]
[1644759034450,0.01612534,42579.0,42578.0,0.60041627]
[1644759049759,0.01612534,42579.0,42578.0,0.85895332]
[1644759050804,0.01601653,42579.0,42578.0,0.85895332]
[1644759054459,0.00025498,42580.0,42579.0,0.85]
[1644759054659,0.20045915,42581.0,42579.0,0.61070831]
[1644759054660,0.2,42581.0,42579.0,0.61070831]
[1644759054857,0.20025498,42581.0,42580.0,0.3924716]
[1644759055058,0.2,42581.0,42580.0,0.59363164]
[1644759055257,0.00611,42581.0,42580.0,0.74363164]
[1644759059201,0.00611,42581.0,42580.0,0.74566068]
[1644759060204,0.00611,42581.0,42580.0,0.89682072]
[1644759074922,0.00611,42581.0,42580.0,0.55331612]
[1644759075521,0.00604473,42581.0,42580.0,0.55331612]
[1644759078761,0.00604473,42581.0,42580.0,0.81560695]
[1644759079759,0.00604473,42581.0,42580.0,0.55331612]
[1644759082104,0.00604473,42581.0,42580.0,0.40331612]
[1644759086058,0.00604473,42581.0,42580.0,0.666374]
[1644759086459,0.00604473,42581.0,42580.0,0.40331612]
[1644759091661,0.00604473,42581.0,42580.0,0.82331612]
[1644759094056,0.00604473,42581.0,42579.0,0.058696]
[1644759094057,0.05604473,42581.0,42579.0,0.058696]
[1644759094264,0.330086,42578.0,42573.0,0.00020417]
[1644759094465,0.8,42579.0,42567.0,0.35167867]
[1644759094466,0.330086,42574.0,42567.0,0.05]
[1644759094660,0.05,42572.0,42566.0,0.00067746]
[1644759094859,0.05,42572.0,42567.0,0.117454]
[1644759095061,0.195961,42568.0,42567.0,0.117454]
[1644759095260,0.195961,42568.0,42567.0,0.1176596]
[1644759095523,0.195961,42568.0,42567.0,0.0589356]
[1644759095724,0.195961,42568.0,42567.0,0.05873]
[1644759095924,0.295261,42568.0,42567.0,0.05873]
[1644759096324,0.195961,42568.0,42567.0,0.05873]
[1644759097326,0.195961,42568.0,42567.0,0.107731]
[1644759097827,0.195961,42568.0,42567.0,0.05873]
[1644759098127,0.47250622,42568.0,42567.0,0.05873]
[1644759098326,0.47383126,42568.0,42567.0,0.05873]
[1644759098531,0.47383126,42568.0,42564.0,0.0002056]
[1644759098532,0.576047,42568.0,42564.0,0.0002056]
[1644759098729,0.380086,42565.0,42563.0,0.0152056]
[1644759098929,0.1493,42565.0,42563.0,0.0152056]
[1644759099191,0.0993,42565.0,42564.0,0.049009]
[1644759099385,0.0993,42565.0,42564.0,0.28085358]
[1644759099586,0.00164101,42568.0,42564.0,0.28085358]
[1644759099787,0.00164101,42568.0,42564.0,0.0492146]
[1644759100488,0.00164101,42568.0,42564.0,0.0002056]
[1644759100685,0.00164101,42568.0,42566.0,0.058725]
[1644759101483,0.00164101,42568.0,42565.0,0.0002056]
[1644759101484,0.05,42567.0,42565.0,0.0002056]
[1644759101683,0.05,42567.0,42565.0,0.00046651]
[1644759101883,0.05,42567.0,42565.0,0.00067211]
[1644759102083,0.26743663,42566.0,42565.0,0.00046651]
[1644759102283,0.05,42567.0,42565.0,0.00046651]
[1644759102683,0.26811377,42566.0,42565.0,0.00046651]
[1644759102910,0.26870144,42567.0,42564.0,0.00047027]
[1644759103111,0.10094101,42568.0,42564.0,0.00047027]
[1644759103309,0.32163341,42567.0,42564.0,0.00047027]
[1644759103510,0.32172949,42567.0,42564.0,0.00067587]
[1644759103910,0.32172949,42567.0,42564.0,0.0002056]
[1644759103911,0.0993,42566.0,42564.0,0.0002056]
[1644759104111,0.0993,42566.0,42559.0,0.55427797]
[1644759104310,0.0993,42566.0,42563.0,0.00047027]
[1644759104511,0.0993,42564.0,42563.0,0.05920527]
[1644759104710,0.0993,42564.0,42563.0,0.10821627]
[1644759105116,0.0993,42564.0,42563.0,0.107746]
[1644759105312,0.10094101,42568.0,42563.0,0.107746]
[1644759105513,0.10094101,42568.0,42563.0,0.058735]
[1644759105714,0.10094101,42568.0,42564.0,0.049008]
[1644759105915,0.10094101,42568.0,42565.0,0.058732]
[1644759106765,0.268786,42567.0,42565.0,0.0002056]
[1644759106965,0.318786,42567.0,42564.0,0.00046946]
[1644759107562,0.0993,42566.0,42560.0,0.0002056]
[1644759107769,0.0993,42566.0,42563.0,0.00046947]
[1644759107965,0.20735615,42564.0,42563.0,0.00046947]
[1644759108367,0.20735615,42564.0,42563.0,0.05920547]
[1644759108768,0.20735615,42564.0,42563.0,0.107747]
[1644759109166,0.0993,42565.0,42564.0,0.049009]
[1644759109365,0.0993,42565.0,42564.0,0.0492136]
[1644759109765,0.0993,42565.0,42564.0,0.04910598]
[1644759109965,0.0993,42565.0,42564.0,0.04910698]
[1644759111212,0.0993,42565.0,42564.0,0.29687087]
[1644759112311,0.25076426,42572.0,42564.0,0.29687087]
[1644759112512,0.25076426,42572.0,42566.0,0.058726]
[1644759112911,0.25076426,42572.0,42566.0,0.05882398]
[1644759113116,0.35006426,42572.0,42566.0,0.05882398]
[1644759113711,0.35006426,42572.0,42566.0,0.05929357]
[1644759114166,0.25076426,42572.0,42566.0,0.05929357]
[1644759114362,0.0993,42568.0,42566.0,0.05929357]
[1644759114764,0.0993,42568.0,42566.0,0.05882398]
[1644759115768,0.0993,42568.0,42567.0,0.049]
[1644759115964,0.0993,42568.0,42567.0,9.798e-05]
[1644759116164,0.0993,42568.0,42567.0,0.049001]
[1644759116365,0.0993,42568.0,42567.0,9.798e-05]
[1644759116565,0.0993,42568.0,42567.0,0.049001]
[1644759116765,0.0993,42568.0,42567.0,9.798e-05]
[1644759116965,0.0993,42568.0,42567.0,0.049001]
[1644759117168,0.0993,42568.0,42567.0,0.04909898]
[1644759118011,0.8525631,42574.0,42567.0,0.04909898]
[1644759118211,0.8525631,42574.0,42569.0,0.058723]
[1644759118212,0.8488781,42574.0,42569.0,0.058723]
[1644759118416,0.84834767,42574.0,42569.0,0.058723]
[1644759118712,0.84834767,42574.0,42569.0,0.05882098]
[1644759118713,0.75326311,42574.0,42569.0,0.05882098]
[1644759118911,0.30874358,42574.0,42569.0,0.05882098]
[1644759119611,0.30821314,42574.0,42569.0,0.05882098]
[1644759119812,0.57516617,42574.0,42569.0,0.05882098]
[1644759120413,0.57516617,42574.0,42569.0,0.058723]
[1644759120813,0.57463573,42574.0,42569.0,0.058723]
[1644759121014,0.47957882,42574.0,42569.0,0.058723]
[1644759121214,0.0954,42573.0,42569.0,0.058723]
[1644759124367,0.00199758,42572.0,42569.0,0.058723]
[1644759124570,0.330086,42571.0,42567.0,0.058733]
[1644759124770,0.27591362,42570.0,42567.0,9.798e-05]
[1644759124971,0.0954,42568.0,42566.0,0.00060801]
[1644759125172,0.60599962,42570.0,42566.0,0.00060801]
[1644759125173,0.27591362,42570.0,42566.0,0.00060801]
[1644759125611,0.27591362,42570.0,42566.0,9.798e-05]
[1644759125811,0.27591362,42570.0,42566.0,0.000608]
[1644759126214,0.20606627,42567.0,42566.0,0.05934]
[1644759126713,0.20606627,42567.0,42566.0,0.05882998]
[1644759127512,0.0954,42568.0,42566.0,0.05882998]
[1644759128719,0.36193596,42568.0,42566.0,0.05882998]
[1644759128916,0.36004512,42568.0,42566.0,0.05882998]
[1644759129361,0.36168613,42568.0,42566.0,0.058732]
[1644759129764,0.09704101,42568.0,42566.0,0.05882998]
[1644759129961,0.36506458,42568.0,42566.0,0.05882998]
[1644759130463,0.36255706,42568.0,42566.0,0.05882998]
[1644759130663,0.09704101,42568.0,42566.0,0.058732]
[1644759130864,0.00164101,42568.0,42566.0,0.058732]
[1644759131063,0.09704101,42568.0,42566.0,0.05882998]
[1644759131865,0.09704101,42568.0,42566.0,0.058732]
[1644759132264,0.09704101,42568.0,42566.0,0.05882998]
[1644759134209,0.09704101,42568.0,42566.0,0.058732]
[1644759135409,0.26414087,42567.0,42566.0,0.058732]
[1644759136016,0.330086,42566.0,42565.0,9.798e-05]
[1644759136212,0.330086,42566.0,42558.0,0.1218]
[1644759136213,0.330086,42566.0,42561.0,9.798e-05]
[1644759136419,0.0954,42563.0,42559.0,0.55407237]
[1644759136666,0.06718435,42562.0,42559.0,0.55417035]
[1644759136861,0.0954,42561.0,42559.0,0.55407237]
[1644759137163,0.19156379,42562.0,42559.0,0.61281437]
[1644759137662,0.25030479,42562.0,42559.0,0.61281437]
[1644759137860,0.19156379,42562.0,42559.0,0.61281437]
[1644759138061,0.0954,42561.0,42559.0,0.61291235]
[1644759138261,0.19156379,42562.0,42559.0,0.61291235]
[1644759138461,0.0954,42561.0,42559.0,0.61291235]
[1644759139161,0.19156379,42562.0,42559.0,0.61291235]
[1644759139362,0.0954,42561.0,42559.0,0.61291235]
[1644759139564,0.65341886,42560.0,42559.0,0.55417035]
[1644759139765,0.65334278,42560.0,42559.0,0.55417035]
[1644759139962,0.430086,42560.0,42559.0,0.55417035]
[1644759140162,0.430086,42560.0,42559.0,0.55407237]
[1644759141216,0.430086,42560.0,42559.0,0.55417035]
[1644759141619,0.430086,42560.0,42559.0,0.55407237]
[1644759141816,0.6995274,42560.0,42559.0,0.55407237]
[1644759143418,0.330086,42560.0,42559.0,0.55417035]
[1644759143618,0.0954,42561.0,42559.0,0.55417035]
[1644759144666,0.00203395,42560.0,42559.0,0.55417035]
[1644759145066,0.33211995,42560.0,42559.0,0.55417035]
[1644759145266,0.00203395,42560.0,42559.0,0.55417035]
[1644759148312,0.09743395,42560.0,42559.0,0.55417035]
[1644759149415,0.00203395,42560.0,42559.0,0.55417035]
[1644759150915,0.33211995,42560.0,42559.0,0.55417035]
[1644759151115,0.61405552,42560.0,42559.0,0.55417035]
[1644759151514,0.61405552,42560.0,42559.0,0.55407237]
[1644759152364,0.330086,42558.0,42557.0,9.798e-05]
[1644759152564,0.330086,42558.0,42557.0,0.058744]
[1644759152764,0.61161887,42558.0,42557.0,0.058744]
[1644759152966,0.330086,42558.0,42557.0,0.058744]
[1644759153164,0.425486,42558.0,42557.0,0.058744]
[1644759153364,0.0954,42558.0,42557.0,0.058744]
[1644759157711,0.425486,42558.0,42557.0,0.058744]
[1644759158711,0.0954,42558.0,42557.0,0.058744]
[1644759162164,0.19156379,42562.0,42557.0,0.058744]
[1644759162368,0.59767196,42561.0,42557.0,0.058744]
[1644759162665,0.36298596,42561.0,42557.0,0.058744]
[1644759162909,0.26758596,42561.0,42557.0,0.058744]
[1644759163109,0.0954,42559.0,42557.0,0.05924712]
[1644759163909,0.09529205,42559.0,42557.0,0.05924712]
[1644759164110,0.09529205,42559.0,42557.0,0.058744]
[1644759164510,0.09529205,42559.0,42557.0,0.05884198]
[1644759164914,0.0952,42561.0,42557.0,0.05884198]
[1644759165110,0.3622,42561.0,42557.0,0.05884198]
[1644759165313,0.0952,42561.0,42557.0,0.05884198]
[1644759165513,0.0952,42561.0,42557.0,0.05925298]
[1644759166514,0.0952,42561.0,42557.0,0.058744]
[1644759166760,0.0952,42561.0,42557.0,0.05925298]
[1644759167465,0.0951,42559.0,42557.0,0.05925298]
[1644759167662,0.27100612,42558.0,42557.0,0.058744]
[1644759167962,0.0951,42559.0,42557.0,0.05925167]
[1644759168864,0.0951,42559.0,42557.0,0.058744]
[1644759169064,0.19156379,42562.0,42557.0,0.058744]
[1644759169264,0.0951,42559.0,42557.0,0.05884198]
[1644759170266,0.0951,42559.0,42557.0,0.058744]
[1644759170512,0.26573064,42558.0,42557.0,0.05884198]
[1644759170711,0.0951,42559.0,42557.0,0.05884198]
[1644759171516,0.0951,42559.0,42557.0,0.058744]
[1644759171712,0.0951,42559.0,42557.0,0.05884198]
[1644759173012,0.26529354,42561.0,42557.0,0.05884198]
[1644759173215,0.0951,42559.0,42557.0,0.05884198]
[1644759173815,0.0951,42559.0,42557.0,0.058744]
[1644759174458,0.0951,42559.0,42557.0,0.05894774]
[1644759175261,0.0951,42559.0,42557.0,0.058744]
[1644759175458,0.0951,42559.0,42557.0,0.05894774]
[1644759176259,0.27126091,42561.0,42557.0,0.058744]